[Event "FIDE WCCC G8 2018"]
[Site "Santiago de Compostela"]
[Date "2018.11.08"]
[Round "4"]
[White "Li, Rachael"]
[Black "Buchtova, Viktorie"]
[Result "1-0"]
[ECO "C44"]
[WhiteElo "1519"]
[BlackElo "1106"]
[Annotator "NA RC"]
[PlyCount "77"]
[EventDate "2018.11.04"]
[EventType "swiss"]
[EventCountry "ESP"]
[SourceTitle "playchess.com"]
[Source "ChessBase"]
[SourceQuality "1"]
[TimeControl "40/5400+30:1800+30"]

1. e4 {[%emt 0:00:00]} e5 {[%emt 0:00:00]} 2. Nf3 {[%emt 0:00:00]} Nc6 {[%emt 0:00:00]} 3. d4 {[%emt 0:00:00]} exd4 {[%emt 0:00:00]} 4. Nxd4 {[%emt 0:00:01]} Nf6 {[%emt 0:00:11]} 5. Nc3 {[%emt 0:00:09]} Bb4 {[%emt 0:00:22]} 6. Nxc6 {[%emt 0:00:37]} bxc6 {[%emt 0:00:28]} 7. Bd3 {[%emt 0:00:32]} d5 {[%emt 0:01:10]} 8. exd5 {[%emt 0:00:11]} cxd5 {[%emt 0:00:07]} 9. O-O {[%emt 0:00:19]} O-O {[%emt 0:00:10]} 10. Bg5 {[%emt 0:00:05]} c6 {[%emt 0:00:07]} 11. Qf3 {[%emt 0:00:20]} Be7 {[%emt 0:09:08]} 12. h3 {[%emt 0:05:29]} Ne4 {[%emt 0:03:45]} 13. Bxe7 {[%emt 0:00:41]} Qxe7 {[%emt 0:03:43]} 14. Nxe4 {[%emt 0:00:14]} dxe4 {[%emt 0:00:53]} 15. Bxe4 {[%emt 0:00:26]} Rb8 {[%emt 0:09:41]} 16. Rfe1 {[%emt 0:01:33]} Qc5 {[%emt 0:02:28]} 17. b3 {[%emt 0:02:02]} Bb7 {[%emt 0:04:22]} 18. Rad1 {[%emt 0:04:34]} Qa3 {[%emt 0:03:33]} 19. Qc3 {[%emt 0:07:47]} c5 {[%emt 0:04:03]} 20. Bd5 {[%emt 0:07:41]} Bxd5 {[%emt 0:02:54]} 21. Rxd5 {[%emt 0:00:13]} Rfc8 {[%emt 0:02:51]} 22. Qe5 {[%emt 0:07:34]} Qxa2 {[%emt 0:03:18]} 23. Rxc5 {[%emt 0:03:13]} Qa6 {[%emt 0:00:30]} 24. Rc7 {[%emt 0:05:57]} Qe6 {[%emt 0:02:05]} 25. Rxc8+ Qxc8 {[%emt 0:01:42]} 26. c4 {[%emt 0:07:04]} h6 {[%emt 0:00:22]} 27. Re3 {[%emt 0:01:15]} Qd8 {[%emt 0:01:55]} 28. Rg3 {[%emt 0:02:28]} Qd1+ {[%emt 0:03:32]} 29. Kh2 {[%emt 0:00:06]} g5 {[%emt 0:02:20]} 30. Qxb8+ {[%emt 0:02:12]} Kg7 {[%emt 0:00:14]} 31. Qe5+ {[%emt 0:00:05]} Kg6 {[%emt 0:00:47]} 32. Rf3 {[%emt 0:00:34]} Qd8 {[%emt 0:01:05]} 33. Qf5+ {[%emt 0:00:07]} Kg7 {[%emt 0:00:51]} 34. Qxf7+ {[%emt 0:02:00]} Kh8 {[%emt 0:00:37]} 35. Re3 {[%emt 0:00:08]} Qd6+ {[%emt 0:00:17]} 36. g3 {[%emt 0:00:05]} Qd8 {[%emt 0:00:30]} 37. Re6 {[%emt 0:00:08]} Qf8 {[%emt 0:01:17]} 38. Qxf8+ {[%emt 0:00:05]} Kh7 {[%emt 0:00:12]} 39. Rxh6# {[%emt 0:00:05]} 1-0

[Event "FIDE WCCC G8 2018"]
[Site "Santiago de Compostela"]
[Date "2018.11.08"]
[Round "4"]
[White "Sickmann, Lisa"]
[Black "Torres Ccahuay, Dayana Nievevska"]
[Result "1-0"]
[ECO "B90"]
[WhiteElo "1468"]
[BlackElo "1068"]
[Annotator "NA RC"]
[PlyCount "135"]
[EventDate "2018.11.04"]
[EventType "swiss"]
[EventCountry "ESP"]
[SourceTitle "playchess.com"]
[Source "ChessBase"]
[SourceQuality "1"]
[TimeControl "40/5400+30:1800+30"]

1. e4 {[%emt 0:02:40]} c5 {[%emt 0:00:00]} 2. Nf3 {[%emt 0:01:24]} d6 {[%emt 0:00:01]} 3. d4 {[%emt 0:00:54]} cxd4 {[%emt 0:00:12]} 4. Nxd4 {[%emt 0:01:05]} Nf6 {[%emt 0:00:16]} 5. Nc3 {[%emt 0:01:45]} a6 {[%emt 0:00:08]} 6. f3 {[%emt 0:01:05]} e6 {[%emt 0:00:17]} 7. Be3 {[%emt 0:02:24]} Be7 {[%emt 0:00:28]} 8. Qd2 {[%emt 0:01:13]} O-O {[%emt 0:00:10]} 9. O-O-O {[%emt 0:02:00]} Nc6 {[%emt 0:00:04]} 10. Kb1 {[%emt 0:02:44]} Qc7 {[%emt 0:00:15]} 11. g4 {[%emt 0:01:35]} b5 {[%emt 0:00:34]} 12. h4 {[%emt 0:00:46]} b4 {[%emt 0:00:39]} 13. Nxc6 {[%emt 0:01:21]} Qxc6 {[%emt 0:00:41]} 14. Ne2 {[%emt 0:00:35]} e5 {[%emt 0:00:20]} 15. Qxb4 {[%emt 0:02:42]} Bd7 {[%emt 0:00:44]} 16. Qb6 {[%emt 0:01:30]} Rfb8 {[%emt 0:00:40]} 17. Qxc6 {[%emt 0:02:23]} Bxc6 {[%emt 0:00:17]} 18. Bg5 {[%emt 0:01:04]} a5 {[%emt 0:00:28]} 19. Bxf6 {[%emt 0:00:27]} Bxf6 {[%emt 0:00:10]} 20. Rxd6 {[%emt 0:00:11]} Be8 {[%emt 0:01:03]} 21. Rd5 {[%emt 0:01:43]} g5 {[%emt 0:00:51]} 22. c3 {[%emt 0:01:09]} gxh4 {[%emt 0:00:24]} 23. g5 {[%emt 0:00:39]} Bxg5 {[%emt 0:01:31]} 24. Rxe5 {[%emt 0:00:42]} f6 {[%emt 0:00:24]} 25. Rd5 {[%emt 0:00:44]} a4 {[%emt 0:00:30]} 26. f4 {[%emt 0:00:39]} Bf7 {[%emt 0:01:15]} 27. Rd6 {[%emt 0:00:36]} Bh6 {[%emt 0:00:48]} 28. Rxh4 {[%emt 0:03:35]} Bf8 {[%emt 0:05:26]} 29. Rd2 {[%emt 0:02:41]} Ra7 {[%emt 0:00:52]} 30. Nd4 {[%emt 0:02:44]} Rd8 {[%emt 0:00:18]} 31. Rdh2 {[%emt 0:01:25]} Rb7 {[%emt 0:00:48]} 32. Rxh7 {[%emt 0:01:05]} Bxa2+ {[%emt 0:00:37]} 33. Kxa2 Rxh7 {[%emt 0:00:22]} 34. Bc4+ {[%emt 0:01:04]} Kh8 {[%emt 0:00:25]} 35. Rxh7+ {[%emt 0:00:59]} Kxh7 {[%emt 0:00:07]} 36. Ne6 {[%emt 0:00:38]} Re8 {[%emt 0:00:52]} 37. Nxf8+ {[%emt 0:00:49]} Rxf8 {[%emt 0:00:32]} 38. Ka3 {[%emt 0:00:26]} Ra8 {[%emt 0:00:27]} 39. Bb5 {[%emt 0:00:24]} Kh6 {[%emt 0:00:46]} 40. Bxa4 {[%emt 0:00:00]} Kh5 {[%emt 0:00:00]} 41. Kb4 {[%emt 0:01:17]} Kg4 {[%emt 0:00:36]} 42. f5 {[%emt 0:00:39]} Rc8 {[%emt 0:01:06]} 43. c4 {[%emt 0:00:25]} Kf4 {[%emt 0:00:10]} 44. Bc2 {[%emt 0:00:12]} Ke5 {[%emt 0:00:48]} 45. b3 {[%emt 0:00:24]} Kd4 {[%emt 0:00:22]} 46. Ka3 {[%emt 0:01:08]} Rb8 {[%emt 0:00:49]} 47. Kb2 {[%emt 0:00:23]} Rh8 {[%emt 0:01:36]} 48. Bb1 {[%emt 0:00:43]} Rh3 49. Bc2 {[%emt 0:01:00]} Kc5 {[%emt 0:00:59]} 50. Bb1 {[%emt 0:01:37]} Kb4 {[%emt 0:00:13]} 51. Bc2 {[%emt 0:00:18]} Rc3 {[%emt 0:00:07]} 52. Bd1 Rxc4 {[%emt 0:00:50]} 53. bxc4 {[%emt 0:00:31]} Kxc4 {[%emt 0:00:02]} 54. Bc2 {[%emt 0:00:26]} Kd4 {[%emt 0:00:31]} 55. Kb3 {[%emt 0:00:06]} Kc5 {[%emt 0:10:24]} 56. Kc3 {[%emt 0:00:56]} Kc6 {[%emt 0:00:42]} 57. Kc4 {[%emt 0:00:17]} Kd6 {[%emt 0:01:00]} 58. Kd4 {[%emt 0:00:47]} Ke7 {[%emt 0:00:07]} 59. Kd5 {[%emt 0:00:09]} Kd7 {[%emt 0:00:23]} 60. Ba4+ {[%emt 0:00:16]} Ke7 {[%emt 0:02:52]} 61. e5 {[%emt 0:00:58]} fxe5 {[%emt 0:00:09]} 62. Kxe5 {[%emt 0:00:07]} Kf8 {[%emt 0:01:14]} 63. Ke6 {[%emt 0:00:12]} Kg7 {[%emt 0:01:08]} 64. Ke7 {[%emt 0:00:05]} Kh8 {[%emt 0:00:11]} 65. f6 {[%emt 0:00:04]} Kh7 {[%emt 0:00:51]} 66. f7 {[%emt 0:00:11]} Kg7 {[%emt 0:00:08]} 67. f8=Q+ {[%emt 0:00:07]} Kh7 {[%emt 0:00:23]} 68. Bc2# 1-0

[Event "FIDE WCCC G8 2018"]
[Site "Santiago de Compostela"]
[Date "2018.11.08"]
[Round "4"]
[White "Iudina, Veronika"]
[Black "Mateeva, Yana"]
[Result "1-0"]
[ECO "B22"]
[WhiteElo "1454"]
[BlackElo "1051"]
[Annotator "NA RC"]
[PlyCount "55"]
[EventDate "2018.11.04"]
[EventType "swiss"]
[EventCountry "ESP"]
[SourceTitle "playchess.com"]
[Source "ChessBase"]
[SourceQuality "1"]
[TimeControl "40/5400+30:1800+30"]

1. e4 {[%emt 0:00:00]} c5 {[%emt 0:00:00]} 2. c3 {[%emt 0:00:00]} d5 {[%emt 0:00:00]} 3. exd5 {[%emt 0:00:00]} Qxd5 {[%emt 0:00:09]} 4. d4 {[%emt 0:00:12]} Nc6 {[%emt 0:01:00]} 5. Nf3 {[%emt 0:00:11]} Bf5 {[%emt 0:00:19]} 6. Bd3 {[%emt 0:00:55]} Nf6 {[%emt 0:05:09]} 7. Bxf5 {[%emt 0:01:10]} Qxf5 {[%emt 0:01:08]} 8. O-O {[%emt 0:01:52]} e6 {[%emt 0:01:21]} 9. h3 {[%emt 0:04:15]} Bd6 10. Be3 O-O {[%emt 0:03:19]} 11. Qe2 {[%emt 0:02:33]} Rfe8 {[%emt 0:02:51]} 12. Nbd2 {[%emt 0:01:10]} cxd4 {[%emt 0:02:11]} 13. cxd4 {[%emt 0:01:33]} e5 {[%emt 0:01:34]} 14. dxe5 {[%emt 0:01:32]} Nxe5 {[%emt 0:01:06]} 15. Nxe5 {[%emt 0:00:53]} Bxe5 {[%emt 0:00:35]} 16. Nf3 {[%emt 0:00:49]} Bf4 {[%emt 0:01:52]} 17. Rfe1 {[%emt 0:05:40]} Nd5 {[%emt 0:03:24]} 18. Qd2 {[%emt 0:00:50]} Nxe3 {[%emt 0:01:01]} 19. fxe3 {[%emt 0:00:20]} Bh6 {[%emt 0:00:41]} 20. Re2 {[%emt 0:02:00]} Qc5 {[%emt 0:03:19]} 21. Rae1 {[%emt 0:01:04]} Rad8 {[%emt 0:01:28]} 22. Nd4 {[%emt 0:01:08]} f6 {[%emt 0:03:21]} 23. Kh1 {[%emt 0:03:17]} Bxe3 {[%emt 0:01:24]} 24. Rxe3 {[%emt 0:00:46]} Rxe3 {[%emt 0:00:16]} 25. Qxe3 {[%emt 0:00:21]} Qxd4 {[%emt 0:00:27]} 26. Qe6+ {[%emt 0:00:15]} Kh8 {[%emt 0:02:31]} 27. Qe8+ {[%emt 0:00:10]} Rxe8 {[%emt 0:00:08]} 28. Rxe8# {[%emt 0:00:05]} 1-0

[Event "FIDE WCCC G8 2018"]
[Site "Santiago de Compostela"]
[Date "2018.11.08"]
[Round "4"]
[White "Oyungerel Sharavdorj"]
[Black "Gu, Crystal Jiuzhou"]
[Result "1-0"]
[ECO "E61"]
[WhiteElo "1382"]
[BlackElo "1284"]
[Annotator "NA RC"]
[PlyCount "119"]
[EventDate "2018.11.04"]
[EventType "swiss"]
[EventCountry "ESP"]
[SourceTitle "playchess.com"]
[Source "ChessBase"]
[SourceQuality "1"]
[TimeControl "40/5400+30:1800+30"]

1. d4 {[%emt 0:00:00]} Nf6 {[%emt 0:00:00]} 2. c4 {[%emt 0:00:00]} g6 {[%emt 0:00:00]} 3. Nc3 {[%emt 0:00:00]} Bg7 {[%emt 0:00:00]} 4. Nf3 {[%emt 0:00:05]} O-O {[%emt 0:00:22]} 5. Bg5 {[%emt 0:00:09]} d6 6. e3 {[%emt 0:00:16]} Nbd7 {[%emt 0:03:13]} 7. Be2 {[%emt 0:01:18]} c5 {[%emt 0:02:05]} 8. d5 {[%emt 0:05:22]} h6 {[%emt 0:02:12]} 9. Bxf6 {[%emt 0:03:29]} Nxf6 {[%emt 0:00:24]} 10. O-O {[%emt 0:00:31]} Bf5 {[%emt 0:00:25]} 11. Bd3 {[%emt 0:01:15]} Bxd3 {[%emt 0:04:21]} 12. Qxd3 {[%emt 0:00:11]} Ng4 {[%emt 0:01:45]} 13. h3 {[%emt 0:00:36]} Ne5 {[%emt 0:00:13]} 14. Nxe5 {[%emt 0:00:20]} dxe5 {[%emt 0:00:42]} 15. Rac1 {[%emt 0:03:44]} Rc8 {[%emt 0:03:26]} 16. Rfd1 {[%emt 0:07:38]} Re8 {[%emt 0:02:33]} 17. Ne4 {[%emt 0:01:32]} f5 {[%emt 0:02:10]} 18. Ng3 {[%emt 0:01:07]} e4 {[%emt 0:03:40]} 19. Qc2 {[%emt 0:01:34]} Be5 {[%emt 0:04:00]} 20. Ne2 {[%emt 0:01:52]} Qb6 {[%emt 0:01:22]} 21. b3 {[%emt 0:00:56]} Qd6 {[%emt 0:00:41]} 22. Qd2 {[%emt 0:03:10]} Rcd8 {[%emt 0:03:39]} 23. a3 {[%emt 0:03:56]} Rd7 {[%emt 0:00:24]} 24. Nc3 {[%emt 0:01:42]} Bxc3 {[%emt 0:05:59]} 25. Qxc3 {[%emt 0:00:11]} Qf6 {[%emt 0:01:58]} 26. Qxf6 {[%emt 0:02:15]} exf6 {[%emt 0:00:10]} 27. b4 {[%emt 0:00:19]} b6 {[%emt 0:00:44]} 28. bxc5 {[%emt 0:00:22]} bxc5 {[%emt 0:00:15]} 29. Rb1 {[%emt 0:00:47]} g5 {[%emt 0:03:19]} 30. Rb5 {[%emt 0:01:39]} Rc8 {[%emt 0:00:38]} 31. Rdb1 {[%emt 0:00:13]} f4 {[%emt 0:02:00]} 32. Rb8 {[%emt 0:00:28]} Rdd8 {[%emt 0:00:59]} 33. Rxc8 {[%emt 0:00:46]} Rxc8 {[%emt 0:00:12]} 34. Rb7 {[%emt 0:00:12]} fxe3 {[%emt 0:01:06]} 35. fxe3 {[%emt 0:00:14]} f5 {[%emt 0:01:07]} 36. g3 {[%emt 0:00:26]} Rf8 {[%emt 0:03:21]} 37. Kf2 {[%emt 0:01:52]} f4 {[%emt 0:02:17]} 38. gxf4 {[%emt 0:00:49]} gxf4 {[%emt 0:00:27]} 39. Rxa7 {[%emt 0:02:44]} fxe3+ {[%emt 0:03:26]} 40. Kxe3 {[%emt 0:00:00]} Rf3+ {[%emt 0:00:00]} 41. Kxe4 {[%emt 0:00:33]} Rxh3 {[%emt 0:00:57]} 42. Ra5 {[%emt 0:02:49]} h5 {[%emt 0:04:01]} 43. Rxc5 {[%emt 0:00:54]} Rxa3 {[%emt 0:02:43]} 44. d6 Ra6 {[%emt 0:09:24]} 45. d7 {[%emt 0:01:15]} Rd6 {[%emt 0:00:50]} 46. Rd5 {[%emt 0:00:44]} Rxd7 {[%emt 0:00:24]} 47. Rxd7 {[%emt 0:00:08]} h4 {[%emt 0:00:05]} 48. Kf4 {[%emt 0:00:09]} Kf8 {[%emt 0:00:11]} 49. Kg4 {[%emt 0:00:10]} Ke8 {[%emt 0:00:11]} 50. Ra7 {[%emt 0:00:06]} h3 {[%emt 0:00:10]} 51. Kxh3 {[%emt 0:00:05]} Kd8 {[%emt 0:00:06]} 52. Kg4 {[%emt 0:00:09]} Kc8 {[%emt 0:00:21]} 53. Kf5 {[%emt 0:00:09]} Kb8 {[%emt 0:00:06]} 54. Rh7 {[%emt 0:00:08]} Ka8 {[%emt 0:00:09]} 55. Ke6 {[%emt 0:00:29]} Kb8 {[%emt 0:00:10]} 56. Kd6 {[%emt 0:00:11]} Ka8 {[%emt 0:00:09]} 57. Kc6 {[%emt 0:00:09]} Kb8 {[%emt 0:00:13]} 58. Rg7 {[%emt 0:00:16]} Ka8 {[%emt 0:00:15]} 59. Kb6 {[%emt 0:00:06]} Kb8 {[%emt 0:00:16]} 60. Rg8# {[%emt 0:00:04]} 1-0

[Event "FIDE WCCC G8 2018"]
[Site "Santiago de Compostela"]
[Date "2018.11.08"]
[Round "4"]
[White "Pavesi, Bianca"]
[Black "Huynh, Phuc Minh Phuong"]
[Result "1-0"]
[ECO "D05"]
[WhiteElo "1377"]
[BlackElo "1246"]
[Annotator "NA RC"]
[PlyCount "37"]
[EventDate "2018.11.04"]
[EventType "swiss"]
[EventCountry "ESP"]
[SourceTitle "playchess.com"]
[Source "ChessBase"]
[SourceQuality "1"]
[TimeControl "40/5400+30:1800+30"]

1. d4 {[%emt 0:01:13]} d5 {[%emt 0:00:00]} 2. Nf3 {[%emt 0:01:01]} Nf6 {[%emt 0:00:23]} 3. e3 {[%emt 0:01:35]} e6 {[%emt 0:03:18]} 4. Bd3 {[%emt 0:00:52]} Bd6 {[%emt 0:02:54]} 5. b3 {[%emt 0:02:40]} Nbd7 {[%emt 0:05:03]} 6. Bb2 {[%emt 0:02:00]} c5 {[%emt 0:01:21]} 7. Ne5 {[%emt 0:08:33]} Qc7 {[%emt 0:04:48]} 8. f4 {[%emt 0:06:14]} a6 {[%emt 0:12:43]} 9. O-O {[%emt 0:02:50]} O-O {[%emt 0:02:04]} 10. Rf3 {[%emt 0:07:51]} h6 {[%emt 0:04:06]} 11. Rh3 {[%emt 0:01:23]} b5 {[%emt 0:14:36]} 12. Nxd7 {[%emt 0:05:23]} Nxd7 {[%emt 0:10:15]} 13. dxc5 {[%emt 0:02:53]} Nxc5 {[%emt 0:01:14]} 14. Rg3 {[%emt 0:22:45]} e5 {[%emt 0:02:30]} 15. Qh5 {[%emt 0:06:45]} Kh8 {[%emt 0:07:45]} 16. fxe5 {[%emt 0:05:38]} Be7 {[%emt 0:01:20]} 17. e6 {[%emt 0:01:48]} Nxe6 {[%emt 0:14:18]} 18. Qxh6+ {[%emt 0:00:22]} Kg8 {[%emt 0:00:11]} 19. Qh7# {[%emt 0:00:13]} 1-0

[Event "FIDE WCCC G8 2018"]
[Site "Santiago de Compostela"]
[Date "2018.11.08"]
[Round "4"]
[White "Kantserova, Ildana"]
[Black "Mgeladze, Kesaria"]
[Result "0-1"]
[ECO "B01"]
[WhiteElo "1282"]
[BlackElo "1211"]
[Annotator "NA"]
[PlyCount "162"]
[EventDate "2018.11.04"]
[EventType "swiss"]
[EventCountry "ESP"]
[SourceTitle "playchess.com"]
[Source "ChessBase"]
[SourceQuality "1"]
[TimeControl "40/5400+30:1800+30"]

1. e4 {[%emt 0:00:00]} d5 {[%emt 0:00:00]} 2. exd5 {[%emt 0:00:00]} Qxd5 {[%emt 0:00:00]} 3. Nc3 {[%emt 0:00:15]} Qa5 {[%emt 0:00:00]} 4. Bc4 {[%emt 0:00:47]} Nf6 {[%emt 0:00:14]} 5. d3 {[%emt 0:00:38]} c6 {[%emt 0:00:10]} 6. Bd2 {[%emt 0:00:33]} Qc7 {[%emt 0:04:16]} 7. Nf3 {[%emt 0:01:07]} Bf5 {[%emt 0:00:14]} 8. O-O {[%emt 0:01:03]} e6 {[%emt 0:00:12]} 9. Re1 {[%emt 0:00:52]} Bd6 {[%emt 0:00:15]} 10. h3 {[%emt 0:02:05]} O-O {[%emt 0:00:15]} 11. Ne4 {[%emt 0:02:46]} Nxe4 {[%emt 0:01:11]} 12. dxe4 {[%emt 0:00:50]} Bg6 {[%emt 0:00:49]} 13. Bd3 {[%emt 0:03:41]} Nd7 {[%emt 0:01:00]} 14. Qe2 {[%emt 0:05:02]} Bh5 {[%emt 0:07:34]} 15. Bc3 {[%emt 0:03:27]} Rad8 {[%emt 0:08:00]} 16. g4 {[%emt 0:05:56]} Bg6 {[%emt 0:00:19]} 17. e5 {[%emt 0:00:52]} Bc5 {[%emt 0:02:03]} 18. Bxg6 {[%emt 0:01:19]} hxg6 {[%emt 0:00:08]} 19. b4 {[%emt 0:02:08]} Bb6 {[%emt 0:01:04]} 20. Rad1 {[%emt 0:02:02]} Rfe8 {[%emt 0:12:34]} 21. Rd2 {[%emt 0:03:59]} f6 {[%emt 0:04:57]} 22. exf6 {[%emt 0:01:28]} Qg3+ {[%emt 0:04:28]} 23. Kf1 {[%emt 0:09:17]} Qxh3+ {[%emt 0:00:16]} 24. Kg1 {[%emt 0:01:23]} Qxg4+ {[%emt 0:00:11]} 25. Kf1 {[%emt 0:00:49]} gxf6 {[%emt 0:00:55]} 26. Ng1 {[%emt 0:02:24]} Qf5 {[%emt 0:04:35]} 27. Red1 {[%emt 0:02:38]} Re7 {[%emt 0:03:17]} 28. Rd3 {[%emt 0:03:26]} Rh7 {[%emt 0:05:23]} 29. Qf3 {[%emt 0:02:57]} Qxf3 {[%emt 0:03:25]} 30. Nxf3 {[%emt 0:00:35]} Rh1+ {[%emt 0:00:27]} 31. Ng1 {[%emt 0:00:25]} Rh7 {[%emt 0:02:10]} 32. Bxf6 {[%emt 0:03:33]} Rf8 {[%emt 0:01:25]} 33. Rxd7 {[%emt 0:01:42]} Rxf6 {[%emt 0:01:25]} 34. Rxh7 {[%emt 0:01:54]} Rxf2+ {[%emt 0:00:09]} 35. Ke1 {[%emt 0:00:47]} Kxh7 {[%emt 0:00:10]} 36. Rd7+ {[%emt 0:01:47]} Kh6 {[%emt 0:00:14]} 37. Rxb7 {[%emt 0:01:08]} Rxc2 {[%emt 0:00:11]} 38. Ne2 {[%emt 0:01:28]} Rxa2 {[%emt 0:00:27]} 39. Kf1 {[%emt 0:00:37]} Rb2 {[%emt 0:00:36]} 40. Re7 {[%emt 0:00:00]} Rxb4 {[%emt 0:00:00]} 41. Rxe6 {[%emt 0:01:07]} c5 {[%emt 0:02:08]} 42. Rc6 {[%emt 0:02:00]} a5 {[%emt 0:01:02]} 43. Nc3 {[%emt 0:00:56]} Rc4 {[%emt 0:01:21]} 44. Nd5 {[%emt 0:01:09]} Bd8 {[%emt 0:00:54]} 45. Ne3 {[%emt 0:01:09]} Rc1+ {[%emt 0:00:55]} 46. Ke2 {[%emt 0:00:17]} Bg5 {[%emt 0:00:49]} 47. Nf5+ {[%emt 0:01:02]} Kh5 {[%emt 0:01:16]} 48. Ng3+ {[%emt 0:00:22]} Kg4 {[%emt 0:00:37]} 49. Rxg6 {[%emt 0:00:42]} Kxg3 {[%emt 0:00:18]} 50. Rxg5+ {[%emt 0:00:11]} Kf4 {[%emt 0:00:04]} 51. Rd5 {[%emt 0:00:27]} Ke4 {[%emt 0:00:22]} 52. Rd8 {[%emt 0:00:29]} a4 {[%emt 0:00:44]} 53. Ra8 {[%emt 0:00:23]} Rc4 {[%emt 0:01:34]} 54. Rd8 {[%emt 0:00:43]} Rd4 {[%emt 0:00:19]} 55. Re8+ {[%emt 0:00:33]} Kd5 {[%emt 0:00:06]} 56. Kf3 {[%emt 0:00:43]} Kc4 {[%emt 0:00:15]} 57. Re2 {[%emt 0:00:25]} Rd3+ {[%emt 0:00:36]} 58. Kf2 {[%emt 0:00:21]} Kb3 {[%emt 0:00:21]} 59. Re1 {[%emt 0:00:24]} a3 {[%emt 0:00:21]} 60. Ke2 {[%emt 0:00:36]} Rc3 {[%emt 0:00:19]} 61. Rb1+ {[%emt 0:00:59]} Ka2 {[%emt 0:00:26]} 62. Rd1 {[%emt 0:00:23]} Rc2+ {[%emt 0:00:37]} 63. Kd3 {[%emt 0:00:22]} Kb3 {[%emt 0:00:09]} 64. Rb1+ {[%emt 0:00:38]} Rb2 {[%emt 0:00:05]} 65. Rc1 {[%emt 0:00:21]} a2 {[%emt 0:00:09]} 66. Rc3+ {[%emt 0:00:27]} Kb4 {[%emt 0:00:04]} 67. Rc4+ {[%emt 0:00:23]} Kb5 {[%emt 0:00:05]} 68. Rc1 {[%emt 0:00:39]} Rb1 {[%emt 0:00:05]} 69. Kc2 {[%emt 0:00:31]} Rxc1+ {[%emt 0:00:09]} 70. Kxc1 {[%emt 0:00:15]} a1=Q+ {[%emt 0:00:08]} 71. Kc2 {[%emt 0:00:13]} Kc4 {[%emt 0:00:09]} 72. Kd2 {[%emt 0:00:16]} Qa3 {[%emt 0:00:18]} 73. Ke2 {[%emt 0:00:11]} Qc3 {[%emt 0:00:08]} 74. Kf2 {[%emt 0:00:08]} Qd3 {[%emt 0:00:05]} 75. Kg2 {[%emt 0:00:12]} Qe3 {[%emt 0:00:05]} 76. Kf1 {[%emt 0:00:14]} Qd2 {[%emt 0:00:09]} 77. Kg1 {[%emt 0:00:10]} Qe2 {[%emt 0:00:03]} 78. Kh1 {[%emt 0:00:04]} Kd4 {[%emt 0:00:05]} 79. Kg1 {[%emt 0:00:27]} Ke3 {[%emt 0:00:04]} 80. Kh1 {[%emt 0:00:10]} Kf3 {[%emt 0:00:09]} 81. Kg1 Qg2# 0-1

[Event "FIDE WCCC G8 2018"]
[Site "Santiago de Compostela"]
[Date "2018.11.08"]
[Round "4"]
[White "Sermukhamedov Minnullina, Adriana"]
[Black "Smietanska, Wiktoria"]
[Result "1/2-1/2"]
[ECO "A08"]
[WhiteElo "1249"]
[BlackElo "1506"]
[Annotator "NA RC"]
[PlyCount "125"]
[EventDate "2018.11.04"]
[EventType "swiss"]
[EventCountry "ESP"]
[SourceTitle "playchess.com"]
[Source "ChessBase"]
[SourceQuality "1"]
[TimeControl "40/5400+30:1800+30"]

1. Nf3 {[%emt 0:00:00]} d5 {[%emt 0:00:00]} 2. g3 {[%emt 0:00:00]} c5 {[%emt 0:00:00]} 3. Bg2 {[%emt 0:00:04]} Nc6 {[%emt 0:00:00]} 4. O-O {[%emt 0:00:20]} Nf6 {[%emt 0:00:07]} 5. d3 {[%emt 0:00:21]} g6 {[%emt 0:00:51]} 6. Nbd2 {[%emt 0:00:30]} Bg7 {[%emt 0:01:55]} 7. Re1 {[%emt 0:01:27]} O-O {[%emt 0:01:17]} 8. e4 {[%emt 0:05:24]} e6 {[%emt 0:10:46]} 9. a4 {[%emt 0:06:44]} a5 {[%emt 0:01:15]} 10. c3 {[%emt 0:05:49]} dxe4 {[%emt 0:04:35]} 11. dxe4 {[%emt 0:00:26]} Qc7 {[%emt 0:02:09]} 12. Nc4 {[%emt 0:02:18]} Rd8 {[%emt 0:00:21]} 13. Qc2 {[%emt 0:00:30]} e5 {[%emt 0:04:43]} 14. Bg5 {[%emt 0:01:50]} b6 {[%emt 0:07:12]} 15. Red1 {[%emt 0:02:14]} Ba6 {[%emt 0:02:03]} 16. Ne3 {[%emt 0:00:37]} Ne7 {[%emt 0:06:53]} 17. Bf1 {[%emt 0:04:54]} Bxf1 {[%emt 0:07:14]} 18. Kxf1 {[%emt 0:00:15]} h6 {[%emt 0:00:47]} 19. Bxf6 {[%emt 0:00:10]} Bxf6 {[%emt 0:00:07]} 20. Rxd8+ Rxd8 {[%emt 0:00:08]} 21. Rd1 {[%emt 0:02:11]} h5 {[%emt 0:01:31]} 22. h4 {[%emt 0:00:29]} Bg7 {[%emt 0:01:02]} 23. Qb3 {[%emt 0:02:03]} Kf8 {[%emt 0:06:16]} 24. Nd5 {[%emt 0:01:15]} Nxd5 {[%emt 0:01:03]} 25. Rxd5 {[%emt 0:00:11]} Rxd5 {[%emt 0:00:27]} 26. Qxd5 {[%emt 0:00:20]} Bf6 {[%emt 0:05:08]} 27. Nd2 {[%emt 0:01:00]} Ke7 {[%emt 0:00:53]} 28. Nc4 {[%emt 0:00:29]} Bg7 {[%emt 0:01:29]} 29. Ke2 {[%emt 0:01:14]} Bf6 {[%emt 0:06:40]} 30. Ke3 {[%emt 0:01:46]} Bg7 {[%emt 0:03:42]} 31. Nd2 {[%emt 0:02:08]} Bh6+ {[%emt 0:00:40]} 32. Kd3 {[%emt 0:02:05]} Bxd2 {[%emt 0:03:46]} 33. Kxd2 {[%emt 0:00:10]} Qd6 {[%emt 0:00:46]} 34. c4 {[%emt 0:00:20]} f5 {[%emt 0:00:31]} 35. f3 {[%emt 0:00:18]} fxe4 {[%emt 0:00:55]} 36. fxe4 {[%emt 0:00:08]} Qf6 {[%emt 0:00:43]} 37. Ke2 {[%emt 0:00:40]} Ke8 {[%emt 0:01:05]} 38. b3 {[%emt 0:01:45]} Ke7 {[%emt 0:00:23]} 39. Qb7+ {[%emt 0:00:56]} Ke8 {[%emt 0:00:10]} 40. Qc8+ {[%emt 0:00:00]} Ke7 {[%emt 0:00:00]} 41. Qc7+ {[%emt 0:03:07]} Ke8 {[%emt 0:00:37]} 42. Qb7 {[%emt 0:01:14]} Kd8 {[%emt 0:01:32]} 43. Qa6 {[%emt 0:00:50]} Kd7 {[%emt 0:00:09]} 44. Qb7+ {[%emt 0:01:59]} Kd8 {[%emt 0:00:19]} 45. Qh7 {[%emt 0:01:26]} Kc8 {[%emt 0:01:15]} 46. Qh6 {[%emt 0:00:50]} Kc7 {[%emt 0:01:00]} 47. Qd2 {[%emt 0:01:18]} Kc8 {[%emt 0:00:18]} 48. Qd5 {[%emt 0:00:39]} Kc7 {[%emt 0:00:14]} 49. Qd2 {[%emt 0:00:35]} Kc8 {[%emt 0:00:15]} 50. Qd5 {[%emt 0:00:17]} Kc7 {[%emt 0:00:16]} 51. Qd2 {[%emt 0:00:23]} Kc8 {[%emt 0:00:23]} 52. Qg5 {[%emt 0:00:37]} Qxg5 {[%emt 0:00:28]} 53. hxg5 {[%emt 0:00:07]} Kd7 {[%emt 0:00:04]} 54. Kf3 {[%emt 0:00:11]} Ke6 {[%emt 0:00:27]} 55. g4 {[%emt 0:00:30]} Kf7 {[%emt 0:02:22]} 56. gxh5 {[%emt 0:00:28]} gxh5 {[%emt 0:00:07]} 57. Kg3 {[%emt 0:00:06]} Kg7 {[%emt 0:00:10]} 58. Kh3 {[%emt 0:00:17]} Kf7 {[%emt 0:00:15]} 59. Kg3 {[%emt 0:00:11]} Kg7 {[%emt 0:00:18]} 60. Kh3 {[%emt 0:00:17]} Kf7 {[%emt 0:00:07]} 61. Kg3 {[%emt 0:00:23]} Kg7 {[%emt 0:00:43]} 62. Kh3 {[%emt 0:00:12]} Kf7 {[%emt 0:01:58]} 63. Kg3 {[%emt 0:00:11]} 1/2-1/2